Workbook

Sheet КИТАЕВ склерометр
D1: Кубы | R1: Кубы | U1: =IF(R1="Отрыв со скалыванием",2.5,"") ->  | V1: =IF(R1="Кубы",10,"") -> 10 | W1: =IF(R1="Кубы",0.95,"") -> 0.95 | X1: =IF(R1="Кубы",100,"") -> 100
D2: Отрыв со скалыванием
B4: Наибольшее и наименьшее значение для отбраковки | D4: № | E4: Значение склерометра | O4: max | P4: min | Q4: Среднее значение по склерометру | S4: Разделение на группы | T4: Значение прочности кубов (КН), показания отрыва | V4: По градуировочной зависимости RiH | X4: Корректировка путем отбраковки RiH-Riф/Sт | Z4: Примечание | BB4: Для построения графика
AC6: ДО ОТБРАКОВКИ | AM6: ПОСЛЕ ОТБРАКОВКИ | AX6: Коэффициент корреляции град.зависимости | BB6: № | BC6: Среднее значение по склерометру | BD6: Значение ПИБ | BE6: Отбракованные показания
T7: Показания | U7: Показания Riф (Мпа) | V7: До отбраковки | W7: После отбраковки | X7: До отбраковки | Y7: После отбраковки | AC7: Промежуточные данные для расчета а1 | AK7: Sт | AM7: Промежуточные данные для расчета а1 | AU7: Sт | AX7: =W58 -> 37.38358571 | BD7: Показания Riф (Мпа)
B8: =IFERROR(IF(O8>4,LARGE(E8:N8,1),""),"") -> 45 | C8: =IFERROR(IF(P8>4,SMALL(E8:N8,1),""),"") -> 20 | D8: 1 | E8: 22 | F8: 34 | G8: 24 | H8: 20 | I8: 21 | J8: 21 | K8: 22 | L8: 45 | M8: 25 | N8: 24 | O8: =IFERROR(MAX(E8:N8)-AVERAGE(E8:N8),"") -> 19.2 | P8: =IFERROR(AVERAGE(E8:N8)-MIN(E8:N8),"") -> 5.8 | Q8: =IFERROR(AVERAGE(E8:N8),"") -> 25.8 | S8: =IFERROR(IF(SUM(Q8:R8)=0,"",IF(SUM(Q8:R8)<=$Q$58,1,2)),"") -> 1 | T8: 349.8 | U8: =IF(T8="","",(IF($R$1=$D$1,((T8*$V$1)/$X$1)*$W$1,IF($R$1=$D$2,T8*$U$1,"")))) -> 33.231 | V8: =IF(SUM(Q8:R8)=0,"",$AH$8*SUM(Q8:R8)+($AG$10)) -> 31.92201595 | W8: =IF(SUM(Q8:R8)=0,"",$AR$8*SUM(Q8:R8)+($AQ$10)) -> 31.92201595 | X8: =(V8-U8)/$AK$58 -> -0.2617487099 | Y8: =(W8-U8)/$AU$58 -> -0.2617487099 | AA8: 1 | AC8: 1 | AD8: =IF(SUM(Q8:R8)=0,"",(SUM(Q8:R8)-$Q$58)*(U8-$U$58)) -> 26.99910477 | AE8: =IF(SUM(Q8:R8)=0,"",POWER((SUM(Q8:R8)-$Q$58),2)) -> 42.27284889 | AF8: а1= | AG8: =IF(AD58=0,"",AD58) -> 356.0910985 | AH8: =IFERROR(AG8/AG9,"") -> 0.8400143923 | AJ8: 1 | AK8: =IFERROR(POWER(U8-V8,2),"") -> 1.713439248 | AM8: 1 | AN8: =IF(SUM(Q8:R8)=0,"",(SUM(Q8:R8)-$Q$58)*(U8-$U$58)) -> 26.99910477 | AO8: =IF(SUM(Q8:R8)=0,"",POWER((SUM(Q8:R8)-$Q$58),2)) -> 42.27284889 | AP8: а1= | AQ8: =IF(AN58=0,"",AN58) -> 356.0910985 | AR8: =IFERROR(AQ8/AQ9,"") -> 0.8400143923 | AT8: 1 | AU8: =IFERROR(POWER(U8-W8,2),"") -> 1.713439248 | AW8: 1 | AX8: =IFERROR((W8-$W$58)*(U8-$W$58),"") -> 22.67963659 | AY8: =IFERROR(POWER((W8-$W$58),2),"") -> 29.82874431 | AZ8: =IFERROR(POWER((U8-$W$58),2),"") -> 17.24396811 | BB8: 1 | BC8: =IF(SUM(Q8:R8)=0,"",SUM(Q8:R8)) -> 25.8 | BD8: =IF(U8=0,"",U8) -> 33.231 | BE8: =IF(Z8="Отбраковывается",U8,"") -> 
B9: =IFERROR(IF(O9>4,LARGE(E9:N9,1),""),"") -> 78 | C9: =IFERROR(IF(P9>4,SMALL(E9:N9,1),""),"") -> 19 | D9: =D8+1 -> 2 | E9: 22 | F9: 25 | G9: 78 | H9: 24 | I9: 22 | J9: 21 | K9: 23 | L9: 20 | M9: 19 | N9: 20 | O9: =IFERROR(MAX(E9:N9)-AVERAGE(E9:N9),"") -> 50.6 | P9: =IFERROR(AVERAGE(E9:N9)-MIN(E9:N9),"") -> 8.4 | Q9: =IFERROR(AVERAGE(E9:N9),"") -> 27.4 | S9: =IFERROR(IF(SUM(Q9:R9)=0,"",IF(SUM(Q9:R9)<=$Q$58,1,2)),"") -> 1 | T9: 346.1 | U9: 32.8795 | V9: =IF(SUM(Q9:R9)=0,"",$AH$8*SUM(Q9:R9)+($AG$10)) -> 33.26603898 | W9: =IF(SUM(Q9:R9)=0,"",$AR$8*SUM(Q9:R9)+($AQ$10)) -> 33.26603898 | X9: =(V9-U9)/$AK$58 -> 0.07729359129 | Y9: =(W9-U9)/$AU$58 -> 0.07729359129 | AA9: =AA8+1 -> 2 | AC9: =AC8+1 -> 2 | AD9: =IF(SUM(Q9:R9)=0,"",(SUM(Q9:R9)-$Q$58)*(U9-$U$58)) -> 22.07793534 | AE9: =IF(SUM(Q9:R9)=0,"",POWER((SUM(Q9:R9)-$Q$58),2)) -> 24.02722531 | AG9: =IF(AE58=0,"",AE58) -> 423.9107112 | AJ9: =AJ8+1 -> 2 | AK9: =IFERROR(POWER(U9-V9,2),"") -> 0.14941238 | AM9: =AM8+1 -> 2 | AN9: =IF(SUM(Q9:R9)=0,"",(SUM(Q9:R9)-$Q$58)*(U9-$U$58)) -> 22.07793534 | AO9: =IF(SUM(Q9:R9)=0,"",POWER((SUM(Q9:R9)-$Q$58),2)) -> 24.02722531 | AQ9: =IF(AO58=0,"",AO58) -> 423.9107112 | AT9: =AT8+1 -> 2 | AU9: =IFERROR(POWER(U9-W9,2),"") -> 0.14941238 | AW9: =AW8+1 -> 2 | AX9: =IFERROR((W9-$W$58)*(U9-$W$58),"") -> 18.54578344 | AY9: =IFERROR(POWER((W9-$W$58),2),"") -> 16.95419114 | AZ9: =IFERROR(POWER((U9-$W$58),2),"") -> 20.28678812 | BB9: =BB8+1 -> 2 | BC9: =IF(SUM(Q9:R9)=0,"",SUM(Q9:R9)) -> 27.4 | BD9: 32.8795
D10: =D9+1 -> 3 | G10: 28 | H10: 28 | J10: 26 | K10: 26 | L10: 29 | M10: 27 | O10: 1.666666667 | P10: 1.333333333 | Q10: 27.33333333 | S10: 1 | T10: 374.9 | U10: 35.6155 | V10: 33.21003802 | W10: 33.21003802 | X10: -0.4810040046 | Y10: -0.4810040046 | AA10: =AA9+1 -> 3 | AC10: =AC9+1 -> 3 | AD10: 8.784599561 | AE10: 24.6852374 | AF10: а0= | AG10: =IFERROR(U58-AH8*Q58,"") -> 10.24964463 | AJ10: =AJ9+1 -> 3 | AK10: 5.786247354 | AM10: =AM9+1 -> 3 | AN10: 8.784599561 | AO10: 24.6852374 | AP10: а0= | AQ10: =IFERROR(U58-AR8*Q58,"") -> 10.24964463 | AT10: =AT9+1 -> 3 | AU10: 5.786247354 | AW10: =AW9+1 -> 3 | AX10: 7.379190062 | AY10: 17.41850039 | AZ10: 3.126127093 | BB10: =BB9+1 -> 3 | BC10: 27.33333333 | BD10: 35.6155
D11: =D10+1 -> 4 | F11: 30 | H11: 28 | J11: 27 | K11: 26 | M11: 27 | N11: 32 | O11: 3.666666667 | P11: 2.333333333 | Q11: 28.33333333 | S11: 1 | T11: 353.2 | U11: 33.554 | V11: 34.05005241 | W11: 34.05005241 | X11: 0.09919225363 | Y11: 0.09919225363 | AA11: =AA10+1 -> 4 | AC11: =AC10+1 -> 4 | AD11: 15.19742 | AE11: 15.74838933 | AJ11: =AJ10+1 -> 4 | AK11: 0.2460679924 | AM11: =AM10+1 -> 4 | AN11: 15.19742 | AO11: 15.74838933 | AT11: =AT10+1 -> 4 | AU11: 0.2460679924 | AW11: =AW10+1 -> 4 | AX11: 12.76605152 | AY11: 11.1124443 | AZ11: 14.66572674 | BB11: =BB10+1 -> 4 | BC11: 28.33333333 | BD11: 33.554
D12: 5 | E12: 34 | G12: 30 | H12: 29 | J12: 30 | K12: 31 | L12: 34 | N12: 34 | O12: 2.285714286 | P12: 2.714285714 | Q12: 31.71428571 | S12: 1 | T12: 367.7 | U12: 34.9315 | V12: 36.89010107 | W12: 36.89010107 | X12: 0.3916482422 | Y12: 0.3916482422 | AA12: 5 | AC12: 5 | AD12: 1.440530854 | AE12: 0.3451229458 | AF12: Уровнение градуировочной зависимости | AJ12: 5 | AK12: 3.836118146 | AM12: 5 | AN12: 1.440530854 | AO12: 0.3451229458 | AP12: Уровнение градуировочной зависимости | AT12: 5 | AU12: 3.836118146 | AW12: 5 | AX12: 1.21006665 | AY12: 0.2435270954 | AZ12: 6.01272435 | BB12: 5 | BC12: 31.71428571 | BD12: 34.9315
D13: 6 | E13: 36 | G13: 35 | H13: 38 | I13: 37 | J13: 33 | K13: 35 | L13: 35 | N13: 35 | O13: 2.5 | P13: 2.5 | Q13: 35.5 | S13: 2 | T13: 492 | U13: 46.74 | V13: 40.07015555 | W13: 40.07015555 | X13: -1.333723796 | Y13: -1.333723796 | AA13: 6 | AC13: 6 | AD13: 29.92408304 | AE13: 10.22875592 | AJ13: 6 | AK13: 44.48682493 | AM13: 6 | AN13: 29.92408304 | AO13: 10.22875592 | AT13: 6 | AU13: 44.48682493 | AW13: 6 | AX13: 25.13666043 | AY13: 7.217657504 | AZ13: 87.54248829 | BB13: 6 | BC13: 35.5 | BD13: 46.74
D14: 7 | E14: 31 | G14: 35 | H14: 34 | I14: 37 | J14: 34 | K14: 31 | L14: 30 | M14: 33 | O14: 3.875 | P14: 3.125 | Q14: 33.125 | S14: 2 | T14: 517 | U14: 49.115 | V14: 38.07512137 | W14: 38.07512137 | X14: -2.20757005 | Y14: -2.20757005 | AA14: 7 | AC14: 7 | AD14: 9.657800355 | AE14: 0.6777284285 | AF14: ="Rн = " & FIXED( AH8,2) & " * H + " & FIXED(AG10,2) -> Rн = 0,84 * H + 10,25 | AJ14: 7 | AK14: 121.8789201 | AM14: 7 | AN14: 9.657800355 | AO14: 0.6777284285 | AP14: ="Rн = " & FIXED(AR8,2) & " * H + " & FIXED(AQ10,2) -> Rн = 0,84 * H + 10,25 | AT14: 7 | AU14: 121.8789201 | AW14: 7 | AX14: 8.112691296 | AY14: 0.4782215662 | AZ14: 137.6260811 | BB14: 7 | BC14: 33.125 | BD14: 49.115
D15: 8 | F15: 32 | H15: 31 | J15: 37 | K15: 36 | L15: 34 | M15: 33 | N15: 36 | O15: 2.857142857 | P15: 3.142857143 | Q15: 34.14285714 | S15: 2 | T15: 428 | U15: 40.66 | V15: 38.93013602 | W15: 38.93013602 | X15: -0.3459092294 | Y15: -0.3459092294 | AA15: 8 | AC15: 8 | AD15: 6.032205598 | AE15: 3.389648375 | AJ15: 8 | AK15: 2.992429384 | AM15: 8 | AN15: 6.032205598 | AO15: 3.389648375 | AT15: 8 | AU15: 2.992429384 | AW15: 8 | AX15: 5.06713952 | AY15: 2.391817853 | AZ15: 10.73489057 | BB15: 8 | BC15: 34.14285714 | BD15: 40.66
D16: 9 | E16: 31 | F16: 28 | G16: 28 | H16: 33 | I16: 29 | J16: 34 | K16: 32 | N16: 32 | O16: 3.125 | P16: 2.875 | Q16: 30.875 | S16: 1 | T16: 360.6 | U16: 34.257 | V16: 36.18508899 | W16: 36.18508899 | X16: 0.3855469475 | Y16: 0.3855469475 | AA16: 9 | AC16: 9 | AD16: 4.46087921 | AE16: 2.035636592 | AJ16: 9 | AK16: 3.717527151 | AM16: 9 | AN16: 4.46087921 | AO16: 2.035636592 | AT16: 9 | AU16: 3.717527151 | AW16: 9 | AX16: 3.747202739 | AY16: 1.436394399 | AZ16: 9.775538229 | BB16: 9 | BC16: 30.875 | BD16: 34.257
D17: 10 | E17: 28 | G17: 29 | H17: 32 | J17: 29 | K17: 33 | L17: 29 | M17: 35 | N17: 34 | O17: 3.875 | P17: 3.125 | Q17: 31.125 | S17: 1 | T17: 336 | U17: 31.92 | V17: 36.39509259 | W17: 36.39509259 | X17: 0.8948540739 | Y17: 0.8948540739 | AA17: 10 | AC17: 10 | AD17: 6.429314754 | AE17: 1.384757907 | AJ17: 10 | AK17: 20.02645367 | AM17: 10 | AN17: 6.429314754 | AO17: 1.384757907 | AT17: 10 | AU17: 20.02645367 | AW17: 10 | AX17: 5.400716926 | AY17: 0.9771186617 | AZ17: 29.85076886 | BB17: 10 | BC17: 31.125 | BD17: 31.92
D18: 11 | E18: 32 | F18: 30 | G18: 30 | H18: 29 | I18: 29 | K18: 30 | L18: 30 | M18: 29 | N18: 28 | O18: 2.333333333 | P18: 1.666666667 | Q18: 29.66666667 | S18: 1 | T18: 364.6 | U18: 34.637 | V18: 35.1700716 | W18: 35.1700716 | X18: 0.1065947313 | Y18: 0.1065947313 | AA18: 11 | AC18: 11 | AD18: 7.237502481 | AE18: 6.943703013 | AJ18: 11 | AK18: 0.2841653293 | AM18: 11 | AN18: 7.237502481 | AO18: 6.943703013 | AT18: 11 | AU18: 0.2841653293 | AW18: 11 | AX18: 6.079606248 | AY18: 4.89964474 | AZ18: 7.543733086 | BB18: 11 | BC18: 29.66666667 | BD18: 34.637
D19: 12 | E19: 28 | G19: 33 | H19: 28 | I19: 29 | J19: 35 | K19: 33 | L19: 34 | M19: 34 | N19: 34 | O19: 3 | P19: 4 | Q19: 32 | S19: 1 | T19: 410 | U19: 38.95 | V19: 37.13010518 | W19: 37.13010518 | X19: -0.3639120892 | Y19: -0.3639120892 | AA19: 12 | AC19: 12 | AD19: -0.4726770546 | AE19: 0.09105751012 | AJ19: 12 | AK19: 3.312017153 | AM19: 12 | AN19: -0.4726770546 | AO19: 0.09105751012 | AT19: 12 | AU19: 3.312017153 | AW19: 12 | AX19: -0.3970555288 | AY19: 0.06425238085 | AZ19: 2.453653714 | BB19: 12 | BC19: 32 | BD19: 38.95
D20: 13 | E20: 30 | F20: 25 | G20: 23 | H20: 26 | J20: 30 | K20: 28 | M20: 24 | N20: 28 | O20: 3.25 | P20: 3.75 | Q20: 26.75 | S20: 1 | T20: 333.5 | U20: 31.6825 | V20: 32.72002962 | W20: 32.72002962 | X20: 0.2074677987 | Y20: 0.2074677987 | AA20: 13 | AC20: 13 | AD20: 31.65104463 | AE20: 30.82200989 | AJ20: 13 | AK20: 1.076467714 | AM20: 13 | AN20: 31.65104463 | AO20: 30.82200989 | AT20: 13 | AU20: 1.076467714 | AW20: 13 | AX20: 26.58733302 | AY20: 21.74875544 | AZ20: 32.50237832 | BB20: 13 | BC20: 26.75 | BD20: 31.6825
D21: 14 | E21: 26 | F21: 30 | G21: 29 | J21: 28 | K21: 28 | L21: 24 | M21: 28 | N21: 28 | O21: 2.375 | P21: 3.625 | Q21: 27.625 | S21: 1 | T21: 352.6 | U21: 33.497 | V21: 33.45504221 | W21: 33.45504221 | X21: -0.008390015337 | Y21: -0.008390015337 | AA21: 14 | AC21: 14 | AD21: 18.17661838 | AE21: 21.87205949 | AJ21: 14 | AK21: 0.001760455779 | AM21: 14 | AN21: 18.17661838 | AO21: 21.87205949 | AT21: 14 | AU21: 0.001760455779 | AW21: 14 | AX21: 15.26862104 | AY21: 15.43345403 | AZ21: 15.10554851 | BB21: 14 | BC21: 27.625 | BD21: 33.497
D22: 15 | F22: 37 | G22: 34 | H22: 33 | I22: 33 | J22: 38 | K22: 38 | L22: 35 | M22: 32 | O22: 3 | P22: 3 | Q22: 35 | S22: 2 | T22: 447 | U22: 42.465 | V22: 39.65014836 | W22: 39.65014836 | X22: -0.5628668927 | Y22: -0.5628668927 | AA22: 15 | AC22: 15 | AD22: 13.71088865 | AE22: 7.280513292 | AJ22: 15 | AK22: 7.923389767 | AM22: 15 | AN22: 13.71088865 | AO22: 7.280513292 | AT22: 15 | AU22: 7.923389767 | AW22: 15 | AX22: 11.5173438 | AY22: 5.137306217 | AZ22: 25.82077114 | BB22: 15 | BC22: 35 | BD22: 42.465
D23: 16 | E23: 36 | F23: 37 | G23: 36 | H23: 41 | I23: 36 | J23: 37 | K23: 42 | L23: 38 | M23: 37 | N23: 41 | O23: 3.9 | P23: 2.1 | Q23: 38.1 | S23: 2 | T23: 460 | U23: 43.7 | V23: 42.25419297 | W23: 42.25419297 | X23: -0.289108277 | Y23: -0.289108277 | AA23: 16 | AC23: 16 | AD23: 36.62410258 | AE23: 33.6196176 | AJ23: 16 | AK23: 2.090357956 | AM23: 16 | AN23: 36.62410258 | AO23: 33.6196176 | AT23: 16 | AU23: 2.090357956 | AW23: 16 | AX23: 30.76477328 | AY23: 23.72281508 | AZ23: 39.89708943 | BB23: 16 | BC23: 38.1 | BD23: 43.7
D24: 17 | E24: 34 | G24: 31 | H24: 33 | I24: 37 | J24: 35 | K24: 33 | L24: 34 | M24: 33 | N24: 35 | O24: 3.111111111 | P24: 2.888888889 | Q24: 33.88888889 | S24: 2 | T24: 477 | U24: 45.315 | V24: 38.71679903 | W24: 38.71679903 | X24: -1.319397733 | Y24: -1.319397733 | AA24: 17 | AC24: 17 | AD24: 12.58819761 | AE24: 2.518986459 | AJ24: 17 | AK24: 43.536256 | AM24: 17 | AN24: 12.58819761 | AO24: 2.518986459 | AT24: 17 | AU24: 43.536256 | AW24: 17 | AX24: 10.57426716 | AY24: 1.777457753 | AZ24: 62.90733257 | BB24: 17 | BC24: 33.88888889 | BD24: 45.315
D25: 18 | E25: 36 | F25: 30 | G25: 30 | H25: 36 | I25: 30 | M25: 35 | O25: 3.166666667 | P25: 2.833333333 | Q25: 32.83333333 | S25: 2 | T25: 373.4 | U25: 35.473 | V25: 37.83011717 | W25: 37.83011717 | X25: 0.4713368193 | Y25: 0.4713368193 | AA25: 18 | AC25: 18 | AD25: -1.015621442 | AE25: 0.2825730052 | AJ25: 18 | AK25: 5.556001374 | AM25: 18 | AN25: -1.015621442 | AO25: 0.2825730052 | AT25: 18 | AU25: 5.556001374 | AW25: 18 | AX25: -0.8531366287 | AY25: 0.1993903449 | AZ25: 3.650337772 | BB25: 18 | BC25: 32.83333333 | BD25: 35.473
D26: 19 | E26: 32 | F26: 37 | H26: 34 | I26: 33 | J26: 34 | K26: 38 | L26: 34 | M26: 34 | O26: 3.5 | P26: 2.5 | Q26: 34.5 | S26: 2 | T26: 234.5 | U26: 22.2775 | V26: 39.23014116 | W26: 39.23014116 | X26: 3.389905283 | Y26: 3.389905283 | AA26: 19 | AC26: 19 | AD26: -33.2068416 | AE26: 4.832270662 | AJ26: 19 | AK26: 287.3920424 | AM26: 19 | AN26: -33.2068416 | AO26: 4.832270662 | AT26: 19 | AU26: 287.3920424 | AW26: 19 | AX26: -27.89422486 | AY26: 3.40976702 | AZ26: 228.1938256 | BB26: 19 | BC26: 34.5 | BD26: 22.2775
D27: 20 | E27: 34 | F27: 37 | G27: 39 | H27: 40 | I27: 36 | J27: 35 | K27: 38 | L27: 38 | N27: 36 | O27: 3 | P27: 3 | Q27: 37 | S27: 2 | T27: 413 | U27: 39.235 | V27: 41.33017714 | W27: 41.33017714 | X27: 0.4189584382 | Y27: 0.4189584382 | AA27: 20 | AC27: 20 | AD27: 8.698393524 | AE27: 22.07348381 | AJ27: 20 | AK27: 4.389767259 | AM27: 20 | AN27: 8.698393524 | AO27: 22.07348381 | AT27: 20 | AU27: 4.389767259 | AW27: 20 | AX27: 7.30677575 | AY27: 15.5755839 | AZ27: 3.427734857 | BB27: 20 | BC27: 37 | BD27: 39.235
D28: 21 | E28: 38 | F28: 39 | H28: 42 | I28: 36 | J28: 38 | K28: 36 | L28: 41 | M28: 37 | N28: 38 | O28: 3.666666667 | P28: 2.333333333 | Q28: 38.33333333 | S28: 2 | T28: 457 | U28: 43.415 | V28: 42.45019633 | W28: 42.45019633 | X28: -0.1929252805 | Y28: -0.1929252805 | AA28: 21 | AC28: 21 | AD28: 36.37893343 | AE28: 36.37990861 | AJ28: 21 | AK28: 0.9308461172 | AM28: 21 | AN28: 36.37893343 | AO28: 36.37990861 | AT28: 21 | AU28: 0.9308461172 | AW28: 21 | AX28: 30.55882766 | AY28: 25.67054315 | AZ28: 36.37795829 | BB28: 21 | BC28: 38.33333333 | BD28: 43.415
D29: 22 | E29: 34 | F29: 37 | G29: 34 | I29: 33 | K29: 35 | L29: 34 | O29: 2.5 | P29: 1.5 | Q29: 34.5 | S29: 2 | T29: 362.9 | U29: 34.4755 | V29: 39.23014116 | W29: 39.23014116 | X29: 0.9507535163 | Y29: 0.9507535163 | AA29: 22 | AC29: 22 | AD29: -6.39267799 | AE29: 4.832270662 | AJ29: 22 | AK29: 22.60661258 | AM29: 22 | AN29: -6.39267799 | AO29: 4.832270662 | AT29: 22 | AU29: 22.60661258 | AW29: 22 | AX29: -5.369941517 | AY29: 3.40976702 | AZ29: 8.456962522 | BB29: 22 | BC29: 34.5 | BD29: 34.4755
D30: 23 | E30: 39 | F30: 36 | G30: 39 | H30: 36 | J30: 37 | L30: 39 | N30: 40 | O30: 2 | P30: 2 | Q30: 38 | S30: 2 | T30: 357.8 | U30: 33.991 | V30: 42.17019153 | W30: 42.17019153 | X30: 1.635537751 | Y30: 1.635537751 | AA30: 23 | AC30: 23 | AD30: -19.33177654 | AE30: 32.46996907 | AJ30: 23 | AK30: 66.89917416 | AM30: 23 | AN30: -19.33177654 | AO30: 32.46996907 | AT30: 23 | AU30: 66.89917416 | AW30: 23 | AX30: -16.23897053 | AY30: 22.91159528 | AZ30: 11.50963783 | BB30: 23 | BC30: 38 | BD30: 33.991
D31: 24 | E31: 29 | G31: 30 | H31: 26 | J31: 28 | K31: 28 | L31: 30 | M31: 28 | N31: 28 | O31: 1.625 | P31: 2.375 | Q31: 28.375 | S31: 1 | T31: 312.5 | U31: 29.6875 | V31: 34.08505301 | W31: 34.08505301 | X31: 0.8793490074 | Y31: 0.8793490074 | AA31: 24 | AC31: 24 | AD31: 30.2206613 | AE31: 15.41942344 | AJ31: 24 | AK31: 19.33847246 | AM31: 24 | AN31: 30.2206613 | AO31: 15.41942344 | AT31: 24 | AU31: 19.33847246 | AW31: 24 | AX31: 25.38579043 | AY31: 10.88031801 | AZ31: 59.22973532 | BB31: 24 | BC31: 28.375 | BD31: 29.6875
D32: 25 | E32: 28 | F32: 26 | G32: 30 | H32: 24 | I32: 26 | J32: 26 | L32: 26 | M32: 29 | N32: 25 | O32: 3.333333333 | P32: 2.666666667 | Q32: 26.66666667 | S32: 1 | T32: 312.8 | U32: 29.716 | V32: 32.65002842 | W32: 32.65002842 | X32: 0.5866978693 | Y32: 0.5866978693 | AA32: 25 | AC32: 25 | AD32: 43.20754097 | AE32: 31.75424723 | AJ32: 25 | AK32: 8.608522779 | AM32: 25 | AN32: 43.20754097 | AO32: 31.75424723 | AT32: 25 | AU32: 8.608522779 | AW32: 25 | AX32: 36.29495627 | AY32: 22.40656464 | AZ32: 58.79187069 | BB32: 25 | BC32: 26.66666667 | BD32: 29.716
D33: 26 | E33: 38 | F33: 38 | G33: 34 | H33: 38 | I33: 37 | J33: 37 | K33: 36 | L33: 37 | M33: 35 | N33: 36 | O33: 1.4 | P33: 2.6 | Q33: 36.6 | S33: 2 | T33: 458 | U33: 43.51 | V33: 40.99417139 | W33: 40.99417139 | X33: -0.5030732752 | Y33: -0.5030732752 | AA33: 26 | AC33: 26 | AD33: 26.33281505 | AE33: 18.47488971 | AJ33: 26 | AK33: 6.329393617 | AM33: 26 | AN33: 26.33281505 | AO33: 18.47488971 | AT33: 26 | AU33: 6.329393617 | AW33: 26 | AX33: 22.11994364 | AY33: 13.03632889 | AZ33: 37.532952 | BB33: 26 | BC33: 36.6 | BD33: 43.51
D34: 27 | E34: 33 | F34: 32 | G34: 30 | H34: 31 | I34: 32 | J34: 34 | L34: 32 | N34: 31 | O34: 2.125 | P34: 1.875 | Q34: 31.875 | S34: 1 | T34: 433 | U34: 41.135 | V34: 37.02510338 | W34: 37.02510338 | X34: -0.8218282997 | Y34: -0.8218282997 | AA34: 27 | AC34: 27 | AD34: -1.600943693 | AE34: 0.1821218525 | AJ34: 27 | AK34: 16.89125021 | AM34: 27 | AN34: -1.600943693 | AO34: 0.1821218525 | AT34: 27 | AU34: 16.89125021 | AW34: 27 | AX34: -1.344815743 | AY34: 0.1285095827 | AZ34: 14.07310914 | BB34: 27 | BC34: 31.875 | BD34: 41.135
D35: 28 | E35: 34 | G35: 36 | H35: 32 | I35: 37 | J35: 36 | M35: 34 | N35: 34 | O35: 2.285714286 | P35: 2.714285714 | Q35: 34.71428571 | S35: 2 | T35: 467 | U35: 44.365 | V35: 39.41014425 | W35: 39.41014425 | X35: -0.9907890777 | Y35: -0.9907890777 | AA35: 28 | AC35: 28 | AD35: 16.84285985 | AE35: 5.820293014 | AJ35: 28 | AK35: 24.55059555 | AM35: 28 | AN35: 16.84285985 | AO35: 5.820293014 | AT35: 28 | AU35: 24.55059555 | AW35: 28 | AX35: 14.14824468 | AY35: 4.106939481 | AZ35: 48.74014543 | BB35: 28 | BC35: 34.71428571 | BD35: 44.365
D36: 29 | E36: 28 | F36: 27 | G36: 31 | H36: 31 | I36: 29 | J36: 28 | L36: 32 | M36: 28 | N36: 33 | O36: 3.333333333 | P36: 2.666666667 | Q36: 29.66666667 | S36: 1 | T36: 377.4 | U36: 35.853 | V36: 35.1700716 | W36: 35.1700716 | X36: -0.1365605851 | Y36: -0.1365605851 | AA36: 29 | AC36: 29 | AD36: 4.033232186 | AE36: 6.943703013 | AJ36: 29 | AK36: 0.4663912013 | AM36: 29 | AN36: 4.033232186 | AO36: 6.943703013 | AT36: 29 | AU36: 0.4663912013 | AW36: 29 | AX36: 3.387973084 | AY36: 4.89964474 | AZ36: 2.342692629 | BB36: 29 | BC36: 29.66666667 | BD36: 35.853
D37: 30 | G37: 35 | H37: 34 | L37: 33 | M37: 37 | N37: 36 | O37: 2 | P37: 2 | Q37: 35 | S37: 2 | T37: 366.1 | U37: 34.7795 | V37: 39.65014836 | W37: 39.65014836 | X37: 0.9739506927 | Y37: 0.9739506927 | AA37: 30 | AC37: 30 | AD37: -7.026455087 | AE37: 7.280513292 | AJ37: 30 | AK37: 23.72321543 | AM37: 30 | AN37: -7.026455087 | AO37: 7.280513292 | AT37: 30 | AU37: 23.72321543 | AW37: 30 | AX37: -5.902323401 | AY37: 5.137306217 | AZ37: 6.781262407 | BB37: 30 | BC37: 35 | BD37: 34.7795
D38: 31 | F38: 32 | G38: 34 | H38: 34 | I38: 30 | J38: 35 | L38: 30 | M38: 32 | N38: 32 | O38: 2.625 | P38: 2.375 | Q38: 32.375 | S38: 2 | T38: 353.7 | U38: 33.6015 | V38: 37.44511058 | W38: 37.44511058 | X38: 0.7685808767 | Y38: 0.7685808767 | AA38: 31 | AC38: 31 | AD38: -0.2770099061 | AE38: 0.005364482906 | AJ38: 31 | AK38: 14.77334227 | AM38: 31 | AN38: -0.2770099061 | AO38: 0.005364482906 | AT38: 31 | AU38: 14.77334227 | AW38: 31 | AX38: -0.2326923079 | AY38: 0.003785308848 | AZ38: 14.30417235 | BB38: 31 | BC38: 32.375 | BD38: 33.6015
D39: 32 | E39: 30 | G39: 32 | I39: 30 | K39: 33 | L39: 30 | M39: 32 | N39: 30 | O39: 2 | P39: 1 | Q39: 31 | S39: 1 | T39: 454 | U39: 43.13 | V39: 36.29009079 | W39: 36.29009079 | X39: -1.3677305 | Y39: -1.3677305 | AA39: 32 | AC39: 32 | AD39: -7.480437145 | AE39: 1.694572249 | AJ39: 32 | AK39: 46.78435802 | AM39: 32 | AN39: -7.480437145 | AO39: 1.694572249 | AT39: 32 | AU39: 46.78435802 | AW39: 32 | AX39: -6.283674863 | AY39: 1.195731153 | AZ39: 33.02127714 | BB39: 32 | BC39: 31 | BD39: 43.13
D40: 33 | E40: 37 | F40: 34 | G40: 33 | H40: 32 | I40: 34 | J40: 36 | K40: 30 | L40: 32 | M40: 35 | N40: 33 | O40: 3.4 | P40: 3.6 | Q40: 33.6 | S40: 2 | T40: 423 | U40: 40.185 | V40: 38.47412821 | W40: 38.47412821 | X40: -0.3421114899 | Y40: -0.3421114899 | AA40: 33 | AC40: 33 | AD40: 3.636915451 | AE40: 1.685433927 | AJ40: 33 | AK40: 2.927082287 | AM40: 33 | AN40: 3.636915451 | AO40: 1.685433927 | AT40: 33 | AU40: 2.927082287 | AW40: 33 | AX40: 3.055061323 | AY40: 1.189282932 | AZ40: 7.847922 | BB40: 33 | BC40: 33.6 | BD40: 40.185
D41: 34 | E41: 34 | I41: 32 | J41: 30 | K41: 35 | L41: 32 | M41: 30 | N41: 34 | O41: 2.571428571 | P41: 2.428571429 | Q41: 32.42857143 | S41: 2 | T41: 398.8 | U41: 37.886 | V41: 37.49011135 | W41: 37.49011135 | X41: -0.07916318272 | Y41: -0.07916318272 | AA41: 34 | AC41: 34 | AD41: 0.06371319485 | AE41: 0.01608180555 | AJ41: 34 | AK41: 0.156727824 | AM41: 34 | AN41: 0.06371319485 | AO41: 0.01608180555 | AT41: 34 | AU41: 0.156727824 | AW41: 34 | AX41: 0.05352000066 | AY41: 0.01134771084 | AZ41: 0.2524201145 | BB41: 34 | BC41: 32.42857143 | BD41: 37.886
D42: 35 | F42: 36 | H42: 35 | I42: 34 | J42: 37 | K42: 31 | M42: 34 | N42: 36 | O42: 2.285714286 | P42: 3.714285714 | Q42: 34.71428571 | S42: 2 | T42: 448 | U42: 42.56 | V42: 39.41014425 | W42: 39.41014425 | X42: -0.6298554049 | Y42: -0.6298554049 | AA42: 35 | AC42: 35 | AD42: 12.48824619 | AE42: 5.820293014 | AJ42: 35 | AK42: 9.921591273 | AM42: 35 | AN42: 12.48824619 | AO42: 5.820293014 | AT42: 35 | AU42: 9.921591273 | AW42: 35 | AX42: 10.49030653 | AY42: 4.106939481 | AZ42: 26.79526486 | BB42: 35 | BC42: 34.71428571 | BD42: 42.56
D43: 36 | X43: =IFERROR(((V43-U43)/$AK$58),"") ->  | Y43: =IFERROR(((W43-U43)/$AU$58),"") ->  | AA43: 36 | AC43: 36 | AJ43: 36 | AM43: 36 | AT43: 36 | AW43: 36 | BB43: 36
D44: 37 | AA44: 37 | AC44: 37 | AJ44: 37 | AM44: 37 | AT44: 37 | AW44: 37 | BB44: 37
D45: 38 | AA45: 38 | AC45: 38 | AJ45: 38 | AM45: 38 | AT45: 38 | AW45: 38 | BB45: 38
D46: 39 | AA46: 39 | AC46: 39 | AJ46: 39 | AM46: 39 | AT46: 39 | AW46: 39 | BB46: 39
D47: 40 | AA47: 40 | AC47: 40 | AJ47: 40 | AM47: 40 | AT47: 40 | AW47: 40 | BB47: 40
D48: 41 | AA48: 41 | AC48: 41 | AJ48: 41 | AM48: 41 | AT48: 41 | AW48: 41 | BB48: 41
D49: 42 | AA49: 42 | AC49: 42 | AJ49: 42 | AM49: 42 | AT49: 42 | AW49: 42 | BB49: 42
D50: 43 | AA50: 43 | AC50: 43 | AJ50: 43 | AM50: 43 | AT50: 43 | AW50: 43 | BB50: 43
D51: 44 | AA51: 44 | AC51: 44 | AJ51: 44 | AM51: 44 | AT51: 44 | AW51: 44 | BB51: 44
D52: 45 | AA52: 45 | AC52: 45 | AJ52: 45 | AM52: 45 | AT52: 45 | AW52: 45 | BB52: 45
D53: 46 | AA53: 46 | AC53: 46 | AJ53: 46 | AM53: 46 | AT53: 46 | AW53: 46 | BB53: 46
D54: 47 | AA54: 47 | AC54: 47 | AJ54: 47 | AM54: 47 | AT54: 47 | AW54: 47 | BB54: 47
D55: 48 | AA55: 48 | AC55: 48 | AJ55: 48 | AM55: 48 | AT55: 48 | AW55: 48 | BB55: 48
D56: 49 | AA56: 49 | AC56: 49 | AJ56: 49 | AM56: 49 | AT56: 49 | AW56: 49 | BB56: 49
D57: 50 | AA57: 50 | AC57: 50 | AJ57: 50 | AM57: 50 | AT57: 50 | AW57: 50 | BB57: 50
Q58: =IFERROR(IFERROR(SUM(R8:R57)/COUNT(R8:R57),SUM(Q8:Q57)/COUNT(Q8:Q57)),"") -> 32.30175737 | U58: =IFERROR(SUM(U8:U57)/COUNT(U8:U57),"") -> 37.38358571 | W58: =IFERROR(SUM(W8:W57)/COUNT(W8:W57),"") -> 37.38358571 | AD58: =IF(SUM(AD8:AD57)=0,"",SUM(AD8:AD57)) -> 356.0910985 | AE58: =IF(SUM(AE8:AE57)=0,"",SUM(AE8:AE57)) -> 423.9107112 | AJ58: Sт | AK58: =IF(SQRT(SUM(AK8:AK57)/(COUNT(AK8:AK57)-2))=0,"",SQRT(SUM(AK8:AK57)/(COUNT(AK8:AK57)-2))) -> 5.000918829 | AN58: =IF(SUM(AN8:AN57)=0,"",SUM(AN8:AN57)) -> 356.0910985 | AO58: =IF(SUM(AO8:AO57)=0,"",SUM(AO8:AO57)) -> 423.9107112 | AT58: Sт | AU58: =IF(SQRT(SUM(AU8:AU57)/(COUNT(AU8:AU57)-2))=0,"",SQRT(SUM(AU8:AU57)/(COUNT(AU8:AU57)-2))) -> 5.000918829 | AX58: =IF(SUM(AX8:AX57)=0,"",SUM(AX8:AX57)) -> 299.1216477 | AY58: =IF(SUM(AY8:AY57)=0,"",SUM(AY8:AY57)) -> 299.1216477 | AZ58: =IF(SUM(AZ8:AZ57)=0,"",SUM(AZ8:AZ57)) -> 1124.424889
Q59: ср.зн. H | U59: cр.зн Rф (Мпа) | AJ59: Sп < 1,5 Sт | AT59: Sп < 1,5 Sт | AY59: =IFERROR(SQRT(AY58),"") -> 17.29513364 | AZ59: =IFERROR(SQRT(AZ58),"") -> 33.53244532
AJ60: Sп | AK60: =IFERROR((AK58*1.5)-(SQRT(SUM(AK8:AK57)/(COUNT(AK8:AK57)-1))),"") -> 2.574551197 | AT60: Sп | AU60: =IFERROR((AU58*1.5)-(SQRT(SUM(AU8:AU57)/(COUNT(AU8:AU57)-1))),"") -> 2.574551197 | AY60: =IFERROR(AY59*AZ59,"") -> 579.9481232
AW61: =IFERROR(AX58/AY60,"") -> 0.515773111
AH62: ПОГРЕШНОСТЬ | AW62: r < 0,7
AH63: Sт | AI63: =IF(AU58=0,"",AU58) -> 5.000918829 | AJ63: =IFERROR(AI63/AI64*100,"") -> 13.37731182 | AN63: < 12%
AH64: Rф | AI64: =IF(W58=0,"",W58) -> 37.38358571 | AN64: > 15%
AH66: Н | AI66: RH
AH67: 5 | AI67: =IFERROR($AQ$10+$AR$8*$AH$67,"") -> 14.44971659
AH68: 10 | AI68: =IFERROR($AQ$10+$AR$8*$AH$68,"") -> 18.64978855
AH69: 15 | AI69: =IFERROR($AQ$10+$AR$8*$AH$69,"") -> 22.84986051
AH70: 20 | AI70: =IFERROR($AQ$10+$AR$8*$AH$70,"") -> 27.04993247
AH71: 25 | AI71: =IFERROR($AQ$10+$AR$8*$AH$71,"") -> 31.25000443
AH72: 30 | AI72: =IFERROR($AQ$10+$AR$8*$AH$72,"") -> 35.4500764
AH73: 35 | AI73: =IFERROR($AQ$10+$AR$8*$AH$73,"") -> 39.65014836
AH74: 40 | AI74: =IFERROR($AQ$10+$AR$8*$AH$74,"") -> 43.85022032
AH75: 45 | AI75: =IFERROR($AQ$10+$AR$8*$AH$75,"") -> 48.05029228
AH76: 50 | AI76: =IFERROR($AQ$10+$AR$8*$AH$76,"") -> 52.25036424
